Cogmind - Beta 13 X1 @@@ ROGUE MODE // 2023.08.18 @ 22:29:09 Player: MTF Result: Destroyed by B-86 Titan with Matter Neutralizer Performance ------------- Evolutions (6) 3000 Regions Visited (24) 4800 Robots Destroyed (202) 1010 Value Destroyed (8306) 8306 Prototype IDs (11) 220 Alien Tech Used (0) 0 Bonus (4791) 4791 TOTAL SCORE: 22127 Bonus ------- High Alert Combat Kills 1141 Follower Combat Kills 2679 Entered Garrisons 800 Used RIF Installer 2000 Friendly Fire -1829 Cogmind --------- Core Integrity 0/1150 Matter 266/300 Energy 550/550 System Corruption 2% Temperature Cool (9) Movement Treading (160) Location -4/Factory Parts ------- > --- POWER (2) -------- Antimatter Reactor Antimatter Reactor > --- PROPULSION (4) --- Heavy Treads Heavy Treads > --- UTILITY (11) ----- Advanced Heat Sink Improved Cooling System Hardened Medium Armor Plating Hardened Medium Armor Plating Centrium Heavy Armor Plating Damper Plating Relay Coupler [NC] (39) > --- WEAPON (2) ------- Enhanced Quantum Rifle Force Lance > --- INVENTORY (5) ---- Hardened Medium Armor Plating Advanced Powered Armor Quantum Rifle Compact HERF Cannon Improved Remote Datajack Peak State ------------ > --- POWER ------------ Cold Fusion Reactor Heavy Antimatter Reactor > --- PROPULSION ------- Improved Heavy Treads Improved Heavy Treads > --- UTILITY ---------- Advanced Cooling System Huge Storage Unit Machine Analyzer Damper Plating Graphene Brace Advanced Shield Generator > --- WEAPON ----------- HERF Cannon Advanced Remote Datajack > --- INVENTORY -------- Heavy Armored Exoskeleton Heavy Armored Exoskeleton Improved Matter Compressor Heavy Servo Lattice Damper Plating Relay Coupler [NC] Relay Coupler [NC] Relay Coupler [Heavy] Relay Coupler [Proto] Relay Coupler [Proto] Relay Coupler [Proto] Relay Coupler [Proto] Long-range Tractor Beam HERF Cannon Multitool Katana [Rating: 120] Favorites ----------- Power Ion Engine Engine Ion Engine Power Core Light Nuclear Core Reactor Cold Fusion Reactor Propulsion Light Treads Treads Light Treads Leg Heavy Armored Exoskeleton Wheel Armored Wheel Hover Unit Combat Linear Gravjet Flight Unit Advanced Surge Thruster Utility Machine Analyzer Device Shield Generator Storage Huge Storage Unit Processor Machine Analyzer Hackware Relay Coupler [Heavy] Protection Heavy Armor Plating Weapon Enhanced Gauss Cannon Energy Gun Medium Laser Energy Cannon Subdweller Beam Cannon Ballistic Gun Subdweller Machine Gun Ballistic Cannon Enhanced Gauss Cannon Launcher Grenade Launcher Special Weapon Mining Laser Slashing Weapon Katana Piercing Weapon Force Lance Special Melee Weapon Improved Datajack Build | -11 -10 -10 -10 -8 -8 -8 -7 -7 -7 -7 -6 -6 -6 -6 -5 -5 -5 -5 -5 -5 -4 -4 -4 -4 ------- Run | Jun Mat Min Sub Mat Gar Mat Fac Gar Fac Gar Fac Was Fac Gar Fac Was Fac Upp Upp War Pro Fac Was Fac Slots Evolved 12 | . . . . 4 . . 2 . . . 2 . . . 2 . . . . . . 2 . . Power 1 | . . . . . . . 1 . . . . . . . . . . . . . . . . . Propulsion 2 | . . . . 2 . . . . . . . . . . . . . . . . . . . . Utility 9 | . . . . 2 . . 1 . . . 2 . . . 2 . . . . . . 2 . . Weapon . | . . . . . . . . . . . . . . . . . . . . . . . . . Parts Attached 331 | 4 16 1 17 5 27 46 18 10 . 20 16 13 . 9 18 14 15 9 4 6 4 32 25 2 Power 24 | . 1 . 1 . 2 1 1 1 . 1 1 3 . . . . 1 2 1 . 1 4 3 . Engine 6 | . 1 . 1 . 2 1 . . . . . . . . . . . . . . . 1 . . Core 9 | . . . . . . . 1 1 . 1 . . . . . . 1 1 1 . 1 2 . . Reactor 9 | . . . . . . . . . . . 1 3 . . . . . 1 . . . 1 3 . Propulsion 47 | 2 . . 1 2 8 12 2 . . 2 . 4 . 2 . . 1 . 1 . . 5 5 . Treads 30 | 2 . . 1 2 5 9 2 . . 1 . 3 . 2 . . . . . . . . 3 . Leg 7 | . . . . . 1 . . . . 1 . 1 . . . . 1 . 1 . . 2 . . Wheel 4 | . . . . . 2 2 . . . . . . . . . . . . . . . . . . Hover 1 | . . . . . . . . . . . . . . . . . . . . . . . 1 . Flight 5 | . . . . . . 1 . . . . . . . . . . . . . . . 3 1 . Utility 139 | 1 1 . 4 2 7 24 12 9 . 13 7 5 . 4 10 10 5 3 2 1 2 5 12 . Device 87 | 1 . . 4 1 2 20 8 8 . 12 5 3 . 4 5 7 3 2 . . . . 2 . Storage 8 | . 1 . . . 1 1 2 1 . . . 1 . . 1 . . . . . . . . . Processor 11 | . . . . 1 . . 1 . . . . . . . . . . . 1 . 2 4 2 . Hackware 7 | . . . . . . . . . . . 1 1 . . . 1 1 . . 1 . 1 1 . Protection 26 | . . . . . 4 3 1 . . 1 1 . . . 4 2 1 1 1 . . . 7 . Artifact . | . . . . . . . . . . . . . . . . . . . . . . . . . Weapon 121 | 1 14 1 11 1 10 9 3 . . 4 8 1 . 3 8 4 8 4 . 5 1 18 5 2 Energy Gun 9 | 1 3 . . . . . . . . . . . . . . . . . . . . 2 2 1 Energy Cannon 18 | . . . 2 . 2 . . . . . . . . . 4 1 2 1 . . . 4 2 . Ballistic Gun 14 | . 3 1 2 . 5 1 . . . . . . . . . . 1 . . . . 1 . . Ballistic Cannon 28 | . . . . . 2 6 2 . . 4 3 . . 1 . 1 . 2 . 3 1 3 . . Launcher 12 | . 7 . 4 . . 1 . . . . . . . . . . . . . . . . . . Special Weapon 19 | . 1 . 3 1 1 . . . . . 1 . . 1 2 1 2 . . 2 . 3 . 1 Impact Weapon . | . . . . . . . . . . . . . . . . . . . . . . . . . Slashing Weapon 18 | . . . . . . 1 1 . . . 3 1 . 1 2 1 3 1 . . . 4 . . Piercing Weapon 2 | . . . . . . . . . . . . . . . . . . . . . . 1 1 . Special Melee Weapon 1 | . . . . . . . . . . . 1 . . . . . . . . . . . . . Unidentified Prototypes 11 | . . . 1 . . 3 . . . . 1 2 . . 1 1 . . . . . . 2 . Corrupted Parts 3 | . . . . . . . . . . . . . . . . . 2 1 . . . . . . System Corruption 22 | . . . . . . . . . . . . . . . . . 16 6 . . . . . . Parts Lost 47 | . . . 1 . 9 . . . . 2 1 . . . . . 8 1 . . 2 23 . . Power 11 | . . . 1 . 2 . . . . . . . . . . . 2 1 . . 1 4 . . Propulsion 11 | . . . . . 5 . . . . 1 . . . . . . 1 . . . . 4 . . Utility 16 | . . . . . 2 . . . . 1 1 . . . . . 4 . . . . 8 . . Weapon 9 | . . . . . . . . . . . . . . . . . 1 . . . 1 7 . . Highest Loss Streak 18 | . . . 1 . 3 . . . . 1 1 . . . . . 3 1 . . 2 18 . . To Critical Strikes 1 | . . . . . . . . . . . . . . . . . . . . . . 1 . . Average Slot Usage (%) 85 | . 100 100 99 91 91 89 89 92 92 91 92 86 80 79 80 69 68 50 71 76 75 61 58 68 Engine 5 | . 14 14 14 9 8 9 7 6 . . . . . . . . . . . . . . . . Core 2 | . . . . . . . 7 7 15 15 11 4 . . . . . 2 5 5 5 4 . . Reactor 3 | . . . . . . . . . . . . 7 13 13 11 11 10 2 5 5 5 3 8 10 Treads 20 | . 28 28 28 34 31 31 29 30 30 29 26 19 13 13 11 11 10 . . . . . 8 10 Device 11 | . 14 14 14 17 9 9 7 7 7 7 16 5 6 10 24 11 15 8 11 11 5 3 4 10 Storage 8 | . 14 14 14 9 9 9 7 7 7 7 6 6 6 6 5 5 5 5 5 5 5 4 . . Processor 4 | . . . . 2 3 . 6 7 7 7 6 6 6 6 5 5 5 5 10 11 11 17 7 . Hackware 2 | . . . . . . . . . . . 2 13 13 8 . 4 1 5 5 5 11 11 4 5 Protection 5 | . . . . . 8 8 7 7 7 6 5 6 6 6 7 5 4 . 7 11 10 . 15 21 Energy Cannon 3 | . . . 8 9 6 . . . . . . . . . 7 . 4 . . . . . 1 2 Ballistic Gun 2 | . 11 13 4 5 7 . . . . . . . . . . . . . . . . . . . Ballistic Cannon 5 | . . . . . 4 17 9 15 15 15 10 6 6 4 . 2 . 10 11 1 11 3 . . Special Weapon 3 | . 1 . 11 3 . . . . . . . 4 . 4 1 4 . . . 9 . 1 . . Naked Turns 24 | . . . . . . . . . . . . . . . . . . . . . . 24 . . Heaviest Build 179 | 14 32 29 38 39 65 80 85 126 126 128 133 138 138 145 179 179 176 160 162 156 144 141 138 131 Greatest Support 150 | 40 40 40 40 80 80 104 104 104 104 104 104 140 140 150 150 150 150 90 90 90 90 90 150 140 Greatest Overweight (x) 7 | . . . . . 5 3 1 1 1 1 1 1 . 1 1 1 1 1 1 1 1 1 7 . Average Overweight (x) . | . . . . . . . . . 1 1 1 . . . . 1 . . 1 1 1 . . . Largest Inventory Capacity 25 | 8 15 15 15 15 20 20 25 25 25 25 25 25 25 25 25 25 25 25 25 25 25 25 5 5 Average Capacity 19 | 8 12 15 15 15 15 20 20 20 25 25 25 25 25 25 25 25 25 25 25 25 25 22 5 5 Most Carried 25 | 6 15 15 15 15 16 20 20 23 23 23 23 25 25 25 25 25 25 24 25 25 25 25 5 5 Average Carried 18 | 6 12 15 14 13 13 19 19 20 23 21 20 24 25 24 23 24 24 20 24 24 24 20 4 5 Final Capacity 25 | 8 15 15 15 15 20 20 20 25 25 25 25 25 25 25 25 25 25 25 25 25 25 5 5 5 Final Carried 25 | 6 15 15 15 14 16 20 20 23 23 21 23 25 25 25 24 25 22 24 25 25 23 5 5 5 Class Distribution -------------------- 50% | Mutant 29% | Bothacker-Mutant 10% | Scavenger-Mutant 8% | Botlord-Mutant Dominant Class ---------------- Mutant | -10/Materials Mutant | -10/Mines Mutant | -10/Subcaves Mutant | -8/Materials Scavenger-Mutant | -8/Garrison Mutant | -8/Materials Mutant | -7/Factory Mutant | -7/Garrison Mutant | -7/Factory Mutant | -7/Garrison Bothacker-Mutant | -6/Factory Bothacker-Mutant | -6/Waste Bothacker-Mutant | -6/Factory Bothacker-Mutant | -6/Garrison Botlord-Mutant | -5/Factory Botlord-Mutant | -5/Waste Bothacker-Mutant | -5/Factory Bothacker-Mutant | -5/Upper Caves Bothacker-Mutant | -5/Upper Caves Bothacker-Mutant | -5/Warlord Bothacker-Mutant | -4/Proximity Caves Bothacker-Mutant | -4/Factory Scavenger-Mutant | -4/Waste Scavenger-Mutant | -4/Factory Resources | -11 -10 -10 -10 -8 -8 -8 -7 -7 -7 -7 -6 -6 -6 -6 -5 -5 -5 -5 -5 -5 -4 -4 -4 -4 ----------- Run | Jun Mat Min Sub Mat Gar Mat Fac Gar Fac Gar Fac Was Fac Gar Fac Was Fac Upp Upp War Pro Fac Was Fac Matter Collected 9048 | 244 240 75 435 . 713 1473 553 673 . 826 241 228 . 279 491 471 189 488 412 . 208 412 397 . Remotely 2355 | . . . . . . 518 367 191 . 697 58 . . 48 78 247 . 151 . . . . . . Salvage Created 9699 | 77 300 77 290 . 932 1127 318 388 . 433 246 125 . 308 814 1008 1760 341 191 . 131 669 74 90 Parts 409 | 5 23 5 20 . 48 59 19 18 . 23 10 5 . 11 17 10 63 22 3 . 6 35 4 3 Haulers Intercepted 11 | . 2 . . . . 5 1 . . . . . . . 2 . 1 . . . . . . . Recyclers Shooed 6 | . 2 . . . . 2 . . . . 1 . . . . . . . . . . 1 . . Parts Field Recycled . | . . . . . . . . . . . . . . . . . . . . . . . . . Retrieved Matter . | . . . . . . . . . . . . . . . . . . . . . . . . . Parts Self-Destructed 50 | . . . 23 . . . . . . . . . . . . . . 20 2 . 5 . . . Prevented . | . . . . . . . . . . . . . . . . . . . . . . . . . Kills | -11 -10 -10 -10 -8 -8 -8 -7 -7 -7 -7 -6 -6 -6 -6 -5 -5 -5 -5 -5 -5 -4 -4 -4 -4 ------- Run | Jun Mat Min Sub Mat Gar Mat Fac Gar Fac Gar Fac Was Fac Gar Fac Was Fac Upp Upp War Pro Fac Was Fac Combat Hostiles Destroyed 168 | . 9 3 4 . 22 24 6 14 . 16 6 . . . 8 4 26 7 4 . 4 10 . 1 Melee 14 | . . . . . . . . . . . 3 . . . . . 2 1 . . . 8 . . Guns 9 | . 1 . . . 8 . . . . . . . . . . . . . . . . . . . Cannons 114 | . . . . . 14 24 6 14 . 16 3 . . . 6 4 11 6 4 . 4 2 . . AOE 15 | . 8 3 4 . . . . . . . . . . . . . . . . . . . . . Classes Destroyed 18 | 2 4 . 1 . 5 1 . 1 . . 1 1 . . . 1 1 . . . . . . . Worker 2 | . . . . . . 1 . . . . . . . . . . . . . . . 1 . . Builder 4 | . . . . . . . . . . . 1 . . . . . 1 . . . . 2 . . Tunneler 1 | 1 . . . . . . . . . . . . . . . . . . . . . . . . Hauler 11 | . 2 . . . . 5 1 . . . . . . . 2 . 1 . . . . . . . Recycler 8 | 1 1 1 . . . 1 2 . . . . . . . . . . . . . . 2 . . Watcher 3 | . 1 . . . . 1 . . . . 1 . . . . . . . . . . . . . Swarmer 38 | . 3 3 . . 6 2 3 3 . 4 2 . . . . . 2 . 1 . 1 8 . . Saboteur 1 | . . . . . . . . . . . . . . . . . 1 . . . . . . . Grunt 66 | . 6 . . . 7 14 2 5 . 8 1 . . . 6 . 13 3 1 . . . . . Brawler 3 | . . . . . 1 . . . . . . . . . . . 2 . . . . . . . Duelist 3 | . . . . . 1 . 1 . . . . . . . . . 1 . . . . . . . Sentry 21 | . . . . . 4 8 . 1 . 2 2 . . . . . . . 1 . 1 1 . 1 Specialist 3 | . . . . . 1 . . . . . . . . . . . 2 . . . . . . . Hunter 10 | . . . . . 2 . . 2 . 1 . . . . 2 . 3 . . . . . . . Programmer 16 | . . . . . . . . 3 . 1 2 . . . . . 2 4 1 . 2 1 . . Compactor 4 | . . . . . . . . . . . . . . . . 4 . . . . . . . . Subdweller 5 | . . . 5 . . . . . . . . . . . . . . . . . . . . . Thug 1 | . . . . . . . . . . . . . . . 1 . . . . . . . . . Martyr 2 | . . . . . . . . . . . . 2 . . . . . . . . . . . . Best Kill Streak 10 | 2 5 3 2 . 4 5 3 3 . 4 2 . . . 5 2 10 3 3 . 2 4 . 1 Combat Bots Only 10 | . 3 3 2 . 4 3 3 3 . 4 1 . . . 5 2 10 3 3 . 2 4 . 1 Max Kills in Single Turn 3 | 1 3 2 2 . 2 2 1 1 . 2 1 1 . . 1 1 1 1 1 . 1 1 . 1 Gunslinging . | . . . . . . . . . . . . . . . . . . . . . . . . . Exploded 2 | . 2 2 2 . . . . . . . . . . . . . . . . . . . . . Melee 1 | . . . . . . . . . . . 1 . . . . . 1 1 . . . 1 . . Uniques/NPCs Destroyed . | . . . . . . . . . . . . . . . . . . . . . . . . . Combat | -11 -10 -10 -10 -8 -8 -8 -7 -7 -7 -7 -6 -6 -6 -6 -5 -5 -5 -5 -5 -5 -4 -4 -4 -4 -------- Run | Jun Mat Min Sub Mat Gar Mat Fac Gar Fac Gar Fac Was Fac Gar Fac Was Fac Upp Upp War Pro Fac Was Fac Damage Taken 15080 | . 145 108 244 . 1175 682 320 255 . 943 617 . . 172 514 . 4285 998 674 . 596 3127 . 225 Core 1985 | . 7 7 35 . 80 82 12 38 . 42 71 . . 8 6 . 134 216 45 . 52 1087 . 63 Absorbed by Shields 1284 | . . . . . . 228 114 98 . 195 251 . . 68 109 . 221 . . . . . . . Reduced by Siege Mode 94 | . . . . . . . . . . . . . . . . . 94 . . . . . . . Redirected to Shielding 96 | . . . . . 12 . . . . . . . . . 64 . . . . . 20 . . . Ignored by Resistances 480 | . . . . . 6 . . . . . . . . . . . 474 . . . . . . . Regen/Repaired (Parts) 1806 | . . . . . . 205 196 . . . 241 860 . 32 149 106 17 . . . . . . . Core Remaining (%) 80 | 100 . . 80 . . 70 . . . 86 . . . 90 . . . . . . 54 . . . Volleys Fired 756 | 4 33 7 149 3 96 78 21 34 . 42 19 7 . 23 21 40 80 20 17 1 16 27 6 12 Largest 2 | 2 2 2 2 1 2 2 2 2 . 2 2 1 . 2 2 1 1 2 2 1 2 2 1 1 Hottest 176 | 70 100 70 110 100 113 105 105 105 . 105 114 5 . 114 176 66 88 122 122 57 122 160 94 94 Shots Fired 1092 | 8 60 10 155 3 143 144 41 66 . 79 31 7 . 29 32 40 80 42 35 1 29 38 7 12 Gun 157 | 8 44 6 3 . 69 1 . . . . . . . . . . 5 . . . . 9 5 7 Cannon 742 | . . . 20 . 69 143 41 66 . 79 31 . . 22 31 32 73 42 35 1 29 23 2 3 Launcher 26 | . 13 4 9 . . . . . . . . . . . . . . . . . . . . . Special 167 | . 3 . 123 3 5 . . . . . . 7 . 7 1 8 2 . . . . 6 . 2 Kinetic 672 | 4 22 3 3 . 93 144 41 66 . 79 31 . . 22 . 32 5 42 35 1 29 20 . . Thermal 246 | 4 25 3 143 3 50 . . . . . . . . . . . . . . . . 6 5 7 Explosive 26 | . 13 4 9 . . . . . . . . . . . . . . . . . . . . . Electromagnetic 115 | . . . . . . . . . . . . . . . 31 . 73 . . . . 6 2 3 Robot Hit Streak 30 | 2 12 2 5 . 30 15 6 13 . 10 5 7 . 6 6 24 27 8 7 . 5 4 3 8 Robot Miss Streak 5 | 2 5 2 1 . 2 3 5 4 . 3 2 1 . 1 2 2 1 3 5 . 3 5 . . Penetration Max 1 | . . . . . . 1 1 1 . 1 . . . . . 1 . 1 . . . . . . Secondary Targets 2 | . . . . . . . . . . . . . . . 1 . . 1 . . . . . . Max Gunslinging Chain 1 | . . . . . . . . . . . . . . . 1 . . 1 . . . . . . Shots Hit Robots 661 | 4 25 4 8 . 98 73 25 37 . 46 35 9 . 36 22 50 76 30 16 . 14 47 1 5 Core Hits 282 | 3 25 7 11 . 38 38 10 20 . 21 12 2 . 9 9 5 29 11 6 . 6 18 1 1 Critical Kills 16 | . . . . . 1 . . . . . . . . . . 4 . 5 4 . 1 1 . . Critical Parts Destroyed 28 | . . . . . 1 . . . . . . . . . . 3 . 13 7 . 3 1 . . Critical Strikes 95 | . 1 . . . 3 12 4 5 . 6 1 1 . . 3 19 . 18 12 . 7 3 . . Burn 1 | . 1 . . . . . . . . . . . . . . . . . . . . . . . Destroy 56 | . . . . . 2 . . . . . . . . . . 18 . 18 12 . 4 2 . . Blast 32 | . . . . . 1 12 4 5 . 6 1 . . . . . . . . . 3 . . . Corrupt 3 | . . . . . . . . . . . . . . . 3 . . . . . . . . . Sever 3 | . . . . . . . . . . . . 1 . . . 1 . . . . . 1 . . Melee Attacks 183 | . . . . . . 1 13 . . . 26 3 . 35 3 17 31 8 . . . 46 . . Impact . | . . . . . . . . . . . . . . . . . . . . . . . . . Slashing 178 | . . . . . . 1 13 . . . 23 3 . 35 3 17 31 8 . . . 44 . . Piercing 2 | . . . . . . . . . . . . . . . . . . . . . . 2 . . Sneak Attacks 39 | . . . . . . . 3 . . . 7 3 . . . 17 2 . . . . 7 . . Combat Hostiles 9 | . . . . . . . . . . . 1 . . . . 8 . . . . . . . . Follow-up Attacks . | . . . . . . . . . . . . . . . . . . . . . . . . . Damage Inflicted 21859 | 38 1050 364 616 . 2104 2455 911 1257 . 1414 1337 198 . 1733 1082 1379 2810 646 289 . 486 1558 29 103 Guns 1468 | 38 256 42 . . 947 . . . . . . . . . . . 61 . . . . 95 29 . Cannons 13583 | . . . 82 . 1123 2416 709 1257 . 1414 609 . . 411 1080 546 2273 522 289 . 486 263 . 103 Explosions 1486 | . 784 318 384 . . . . . . . . . . . . . . . . . . . . . Melee 5002 | . . . . . . . 202 . . . 702 198 . 1322 . 833 421 124 . . . 1200 . . Ramming 142 | . 10 4 6 . . 39 . . . . 26 . . . 2 . 55 . . . . . . . Kinetic 10473 | 25 137 18 . . 1343 2416 709 1257 . 1414 609 . . 411 . 546 61 522 289 . 486 230 . . Thermal 1269 | 13 119 24 226 . 761 . . . . . . . . . . . . . . . . 97 29 . Explosive 1486 | . 784 318 384 . . . . . . . . . . . . . . . . . . . . . Electromagnetic 3487 | . . . . . . . . . . . . . . . 1080 . 2273 . . . . 31 . 103 Impact . | . . . . . . . . . . . . . . . . . . . . . . . . . Slashing 4902 | . . . . . . . 202 . . . 702 198 . 1322 . 833 421 124 . . . 1100 . . Piercing 100 | . . . . . . . . . . . . . . . . . . . . . . 100 . . Highest Corruption 31 | . . . . . 4 11 . . . . . . . . 1 1 17 27 31 31 4 2 2 2 Average Corruption 8 | . . . . . 4 7 . . . . . . . . 1 1 2 23 29 31 3 1 2 2 Corruption Purged . | . . . . . . . . . . . . . . . . . . . . . . . . . Corruption Blocked . | . . . . . . . . . . . . . . . . . . . . . . . . . Effects 267 | . . . . . 23 79 . . . . . . . . 9 8 13 47 58 5 3 10 10 2 Message Errors 67 | . . . . . 7 21 . . . . . . . . 3 2 4 9 12 2 . 5 2 . Matter Fused 60 | . . . . . 5 19 . . . . . . . . 3 2 4 8 12 2 2 . 3 . Heat Flow Errors 31 | . . . . . 2 8 . . . . . . . . . . 1 13 5 . . 1 1 . Energy Discharges 41 | . . . . . 5 12 . . . . . . . . . 2 1 8 10 1 . 1 . 1 Parts Rejected 2 | . . . . . . . . . . . . . . . . . 1 . . . . 1 . . Parts Fused 2 | . . . . . . . . . . . . . . . . . . . 1 . . 1 . . Data Loss (minor) 25 | . . . . . . 8 . . . . . . . . 1 2 2 2 7 . . . 2 1 Data Loss (major) 14 | . . . . . 3 3 . . . . . . . . . . . 1 7 . . . . . Misfires 14 | . . . . . 1 5 . . . . . . . . 1 . . 4 2 . . . 1 . Alerts 4 | . . . . . . 1 . . . . . . . . 1 . . . 1 . . . 1 . Weapon Failures 7 | . . . . . . 2 . . . . . . . . . . . 2 1 . 1 1 . . Overload Shots . | . . . . . . . . . . . . . . . . . . . . . . . . . Overflow Damage 694 | . 5 6 . . 25 74 26 1 . 44 148 . . 54 26 144 72 . . . 2 67 . . Projectiles 226 | . . . . . 25 74 26 1 . 44 3 . . . 26 . 25 . . . 2 . . . Explosions 11 | . 5 6 . . . . . . . . . . . . . . . . . . . . . . Melee 457 | . . . . . . . . . . . 145 . . 54 . 144 47 . . . . 67 . . Knockbacks 85 | . . . . . . 22 10 12 . 17 1 . . . . . . 8 4 . 4 7 . . Impact . | . . . . . . . . . . . . . . . . . . . . . . . . . Kinetic 77 | . . . . . . 19 9 12 . 15 1 . . . . . . 8 4 . 3 6 . . Secondary 8 | . . . . . . 3 1 . . 2 . . . . . . . . . . 1 1 . . Self-Inflicted Damage 105 | . 23 72 10 . . . . . . . . . . . . . . . . . . . . . Shots 6 | . 1 4 1 . . . . . . . . . . . . . . . . . . . . . Rammed 19 | . 5 1 2 . . 6 . . . . 2 . . . 1 . 2 . . . . . . . Targets Rammed 23 | . 5 1 2 . . 7 . . . . 3 . . . 1 . 4 . . . . . . . Kicked 2 | . . . . . . . . . . . . . . . . . 2 . . . . . . . Crushed 2 | . . . . . . 1 . . . . 1 . . . . . . . . . . . . . Highest Temperature 386 | 80 100 50 . . 309 306 360 287 . 364 5 . . 96 72 . 219 277 386 . 315 216 231 69 Average Temperature 87 | 35 29 26 . . 73 80 139 98 . 133 2 . . 30 32 . 90 92 117 . 131 76 93 44 Received Heat Transfer 3074 | . 42 . 27 . 180 347 30 42 . 351 109 . . 36 66 . 1463 150 54 . . 132 . 45 Effects 8 | . . . . . . . 1 . . 4 . . . . . . 3 . . . . . . . Energy Bleed 2 | . . . . . . . 1 . . 1 . . . . . . . . . . . . . . Interference 6 | . . . . . . . . . . 3 . . . . . . 3 . . . . . . . Siege Activations 4 | . . . . . . . . . . . . . . . . . 3 . . . . . . 1 Total Turns 58 | . . . . . . . . . . . . . . . . . 44 . . . . . . 14 Longest Duration 27 | . . . . . . . . . . . . . . . . . 27 . . . . . . 14 Robots Corrupted 18 | . . . . . . . . . . . . . . . 4 . 13 . . . . . . 1 Combat Hostiles 16 | . . . . . . . . . . . . . . . 2 . 13 . . . . . . 1 Parts Fried 28 | . . . . . . . . . . . . . . . 10 . 17 . . . . . . 1 Impact Corruptions . | . . . . . . . . . . . . . . . . . . . . . . . . . Robots Melted . | . . . . . . . . . . . . . . . . . . . . . . . . . Combat Hostiles . | . . . . . . . . . . . . . . . . . . . . . . . . . Parts Melted 5 | . . . . . 1 . . . . . . . . . . . 3 . . . . 1 . . Heat Transferred 2240 | 37 407 74 411 . 1087 . . . . . . . . . . . . . . . . 187 37 . Parts Sabotaged . | . . . . . . . . . . . . . . . . . . . . . . . . . Parts Stolen . | . . . . . . . . . . . . . . . . . . . . . . . . . Parts Stripped . | . . . . . . . . . . . . . . . . . . . . . . . . . Power Chain Reactions . | . . . . . . . . . . . . . . . . . . . . . . . . . Missiles Intercepted . | . . . . . . . . . . . . . . . . . . . . . . . . . Alert | -11 -10 -10 -10 -8 -8 -8 -7 -7 -7 -7 -6 -6 -6 -6 -5 -5 -5 -5 -5 -5 -4 -4 -4 -4 ------- Run | Jun Mat Min Sub Mat Gar Mat Fac Gar Fac Gar Fac Was Fac Gar Fac Was Fac Upp Upp War Pro Fac Was Fac Peak Influence 1547 | 10 310 169 . 99 715 428 172 500 262 911 622 139 5 1547 968 319 1034 . . . . 149 50 91 Initial 812 | . 6 66 . 96 48 348 154 60 262 183 478 109 5 3 812 319 . . . . . 31 50 . Average 358 | 8 99 166 . 95 373 286 109 339 262 722 421 79 5 1099 734 112 336 . . . . 69 25 50 Maximum Alert Level 4 | . 1 . . . 3 2 . 2 1 3 2 . . 4 3 1 3 . . . . . . . Low Security (%) 41 | 100 88 100 . 100 12 25 100 18 . 11 . 100 100 2 . 72 42 . . . . 100 100 100 Level 1 25 | . 11 . . . 57 61 . 36 100 2 38 . . 4 . 27 18 . . . . . . . Level 2 15 | . . . . . 20 12 . 45 . 13 61 . . . 39 . 26 . . . . . . . Level 3 12 | . . . . . 10 . . . . 71 . . . 33 60 . 12 . . . . . . . Level 4 4 | . . . . . . . . . . . . . . 58 . . . . . . . . . . Level 5 . | . . . . . . . . . . . . . . . . . . . . . . . . . High Security . | . . . . . . . . . . . . . . . . . . . . . . . . . Max Security . | . . . . . . . . . . . . . . . . . . . . . . . . . Squads Dispatched 21 | . 2 . . . . 4 . . . . 2 . . . 3 . 8 . . . . 2 . . Investigation 2 | . 1 . . . . 1 . . . . . . . . . . . . . . . . . . Extermination 5 | . . . . . . . . . . . 2 . . . . . 2 . . . . 1 . . Reinforcement 8 | . 1 . . . . 3 . . . . . . . . 1 . 2 . . . . 1 . . Assault 5 | . . . . . . . . . . . . . . . 2 . 3 . . . . . . . Garrison 1 | . . . . . . . . . . . . . . . . . 1 . . . . . . . Intercept . | . . . . . . . . . . . . . . . . . . . . . . . . . Searches Triggered . | . . . . . . . . . . . . . . . . . . . . . . . . . Construction Impeded 2 | . . . . . . 1 . . . . . . . . 1 . . . . . . . . . Haulers Reinforced . | . . . . . . . . . . . . . . . . . . . . . . . . . Active Scanning Responses . | . . . . . . . . . . . . . . . . . . . . . . . . . Cargo Convoy Interrupts . | . . . . . . . . . . . . . . . . . . . . . . . . . Stealth | -11 -10 -10 -10 -8 -8 -8 -7 -7 -7 -7 -6 -6 -6 -6 -5 -5 -5 -5 -5 -5 -4 -4 -4 -4 --------- Run | Jun Mat Min Sub Mat Gar Mat Fac Gar Fac Gar Fac Was Fac Gar Fac Was Fac Upp Upp War Pro Fac Was Fac Distress Signals 6 | . 1 . . . . 1 . . . . 1 . . . . . 1 . . . . 2 . . Communications Jammed 3 | . . . . . . . . . . . . . . . . . 2 . . . . 1 . . Distress Signals 2 | . . . . . . . . . . . . . . . . . 1 . . . . 1 . . Times Spotted 333 | . 15 2 18 1 25 32 9 14 . 28 14 5 . 34 17 5 53 8 6 . 4 39 . 4 Peak Tracking Total 14 | . 4 2 2 2 4 4 4 3 . 8 4 2 . 8 5 2 10 4 3 . 2 14 . 2 Tactical Retreats 25 | . . . 1 . 1 1 . 1 . 6 1 . . 1 . . 5 2 2 . . 4 . . Traps | -11 -10 -10 -10 -8 -8 -8 -7 -7 -7 -7 -6 -6 -6 -6 -5 -5 -5 -5 -5 -5 -4 -4 -4 -4 ------- Run | Jun Mat Min Sub Mat Gar Mat Fac Gar Fac Gar Fac Was Fac Gar Fac Was Fac Upp Upp War Pro Fac Was Fac Traps Triggered 22 | . . . 1 . 3 4 . . . 4 1 . . 1 1 . 6 . . . . 1 . . Indirectly . | . . . . . . . . . . . . . . . . . . . . . . . . . Trap Hack Attempts . | . . . . . . . . . . . . . . . . . . . . . . . . . Triggered . | . . . . . . . . . . . . . . . . . . . . . . . . . Disarmed . | . . . . . . . . . . . . . . . . . . . . . . . . . Reprogrammed . | . . . . . . . . . . . . . . . . . . . . . . . . . Reused . | . . . . . . . . . . . . . . . . . . . . . . . . . Traps Extracted . | . . . . . . . . . . . . . . . . . . . . . . . . . Installed . | . . . . . . . . . . . . . . . . . . . . . . . . . Triggered 1 | . . . . . . . . . . . . . . . 1 . . . . . . . . . Machines | -11 -10 -10 -10 -8 -8 -8 -7 -7 -7 -7 -6 -6 -6 -6 -5 -5 -5 -5 -5 -5 -4 -4 -4 -4 ---------- Run | Jun Mat Min Sub Mat Gar Mat Fac Gar Fac Gar Fac Was Fac Gar Fac Was Fac Upp Upp War Pro Fac Was Fac Machines Disabled 29 | . 1 . . . 5 3 2 2 . 3 . . . . 8 . 4 . . . . 1 . . Max in Single Turn 2 | . 1 . . . 1 1 1 1 . 2 . . . . 1 . 1 . . . . 1 . . Garrison Access 2 | . . . . . . . . . . . . . . . . . 2 . . . . . . . Garrison Relay 1 | . . . . . 1 . . . . . . . . . . . . . . . . . . . Machines Repaired . | . . . . . . . . . . . . . . . . . . . . . . . . . Machines Sabotaged . | . . . . . . . . . . . . . . . . . . . . . . . . . Overloaded Fab Kills . | . . . . . . . . . . . . . . . . . . . . . . . . . Hacking | -11 -10 -10 -10 -8 -8 -8 -7 -7 -7 -7 -6 -6 -6 -6 -5 -5 -5 -5 -5 -5 -4 -4 -4 -4 --------- Run | Jun Mat Min Sub Mat Gar Mat Fac Gar Fac Gar Fac Was Fac Gar Fac Was Fac Upp Upp War Pro Fac Was Fac Machines Accessed 58 | . 5 . 1 1 3 13 3 2 1 1 4 . 1 2 7 . 7 . . . . 6 . 1 Terminals 43 | . 4 . . . 3 10 1 2 . 1 2 . . 2 6 . 6 . . . . 5 . 1 Fabricators 1 | . . . . . . . . . . . . . . . 1 . . . . . . . . . Repair Stations 6 | . . . . . . 2 1 . . . 2 . . . . . . . . . . 1 . . Recycling Units 2 | . 1 . . . . 1 . . . . . . . . . . . . . . . . . . Scanalyzers . | . . . . . . . . . . . . . . . . . . . . . . . . . Garrison Access 5 | . . . . 1 . . 1 . 1 . . . 1 . . . 1 . . . . . . . Total Hacks 149 | . 14 . 4 1 5 33 17 4 1 2 15 . 1 6 20 . 13 . . . . 11 . 2 Successful 61 | . 4 . 4 1 2 9 13 2 1 1 7 . 1 1 7 . 4 . . . . 2 . 2 Failed 88 | . 10 . . . 3 24 4 2 . 1 8 . . 5 13 . 9 . . . . 9 . . Catastrophic 20 | . . . . . . 7 1 . . . . . . 2 2 . 5 . . . . 3 . . Database Lockouts . | . . . . . . . . . . . . . . . . . . . . . . . . . Manual 72 | . 14 . . . 1 20 5 1 . . 5 . . 1 14 . 4 . . . . 5 . 2 Terminals 114 | . 13 . . . 5 27 9 4 . 2 10 . . 6 14 . 12 . . . . 10 . 2 Fabricators 6 | . . . . . . . . . . . . . . . 6 . . . . . . . . . Repair Stations 17 | . . . . . . 5 6 . . . 5 . . . . . . . . . . 1 . . Recycling Units 2 | . 1 . . . . 1 . . . . . . . . . . . . . . . . . . Scanalyzers . | . . . . . . . . . . . . . . . . . . . . . . . . . Garrison Access 6 | . . . . 1 . . 2 . 1 . . . 1 . . . 1 . . . . . . . Terminal Hacks 35 | . 3 . 4 . 2 4 3 1 . 1 4 . . 1 5 . 3 . . . . 2 . 2 Record 4 | . . . 4 . . . . . . . . . . . . . . . . . . . . . Robot Analysis 3 | . 3 . . . . . . . . . . . . . . . . . . . . . . . Level Access Points 1 | . . . . . . . . . . . . . . . . . . . . . . . . 1 Branch Access Points 3 | . . . . . . 1 . . . . . . . . . . 1 . . . . . . 1 Emergency Access Points 3 | . . . . . 1 . . . . 1 . . . 1 . . . . . . . . . . Terminal Index 1 | . . . . . . . . . . . . . . . . . 1 . . . . . . . Unreport Threat 6 | . . . . . . 2 1 . . . 1 . . . 2 . . . . . . . . . Locate Traps 2 | . . . . . . . . . . . 1 . . . 1 . . . . . . . . . Hauler Manifests 1 | . . . . . . . 1 . . . . . . . . . . . . . . . . . Zone Layout 9 | . . . . . . 1 1 . . . 2 . . . 2 . 1 . . . . 2 . . Patrol Navigation 1 | . . . . . 1 . . . . . . . . . . . . . . . . . . . Security Stations 1 | . . . . . . . . 1 . . . . . . . . . . . . . . . . Fabricator Hacks 1 | . . . . . . . . . . . . . . . 1 . . . . . . . . . Network Status 1 | . . . . . . . . . . . . . . . 1 . . . . . . . . . Repair Station Hacks 12 | . . . . . . 4 6 . . . 2 . . . . . . . . . . . . . Scan Component 6 | . . . . . . 2 3 . . . 1 . . . . . . . . . . . . . Repair 6 | . . . . . . 2 3 . . . 1 . . . . . . . . . . . . . Recycling Unit Hacks . | . . . . . . . . . . . . . . . . . . . . . . . . . Scanalyzer . | . . . . . . . . . . . . . . . . . . . . . . . . . Garrison Access Hacks 6 | . . . . 1 . . 2 . 1 . . . 1 . . . 1 . . . . . . . Unlock Access 4 | . . . . 1 . . 1 . 1 . . . 1 . . . . . . . . . . . Seal Access 1 | . . . . . . . . . . . . . . . . . 1 . . . . . . . Coupler Status 1 | . . . . . . . 1 . . . . . . . . . . . . . . . . . Unauthorized Hacks 7 | . 1 . . . . 1 2 1 . . 1 . . . 1 . . . . . . . . . Terminals 3 | . . . . . . . 2 1 . . . . . . . . . . . . . . . . Track 1 | . . . . . . . 1 . . . . . . . . . . . . . . . . . Operators 1 | . . . . . . . 1 . . . . . . . . . . . . . . . . . Sabotage 1 | . . . . . . . . 1 . . . . . . . . . . . . . . . . Fabricators 1 | . . . . . . . . . . . . . . . 1 . . . . . . . . . Haulers 1 | . . . . . . . . . . . . . . . 1 . . . . . . . . . Repair Stations 1 | . . . . . . . . . . . 1 . . . . . . . . . . . . . Mechanics 1 | . . . . . . . . . . . 1 . . . . . . . . . . . . . Recycling Units 2 | . 1 . . . . 1 . . . . . . . . . . . . . . . . . . Tunnel 2 | . 1 . . . . 1 . . . . . . . . . . . . . . . . . . Scanalyzers . | . . . . . . . . . . . . . . . . . . . . . . . . . Garrison Access . | . . . . . . . . . . . . . . . . . . . . . . . . . Data Cores Recovered . | . . . . . . . . . . . . . . . . . . . . . . . . . Used . | . . . . . . . . . . . . . . . . . . . . . . . . . Hacking Detections 51 | . 4 . . . 3 12 2 2 1 1 4 . 1 2 7 . 6 . . . . 5 . 1 Full Trace Events 1 | . . . . . . . . . . . . . . 1 . . . . . . . . . . Feedback Events . | . . . . . . . . . . . . . . . . . . . . . . . . . Feedback Blocked . | . . . . . . . . . . . . . . . . . . . . . . . . . Robot Schematics Acquired . | . . . . . . . . . . . . . . . . . . . . . . . . . Robots Built . | . . . . . . . . . . . . . . . . . . . . . . . . . Authchips . | . . . . . . . . . . . . . . . . . . . . . . . . . Time . | . . . . . . . . . . . . . . . . . . . . . . . . . Total Robot Build Rating . | . . . . . . . . . . . . . . . . . . . . . . . . . Part Schematics Acquired . | . . . . . . . . . . . . . . . . . . . . . . . . . Parts Built . | . . . . . . . . . . . . . . . . . . . . . . . . . Authchips . | . . . . . . . . . . . . . . . . . . . . . . . . . Time . | . . . . . . . . . . . . . . . . . . . . . . . . . Total Part Build Rating . | . . . . . . . . . . . . . . . . . . . . . . . . . Parts Repaired 6 | . . . . . . 2 3 . . . 1 . . . . . . . . . . . . . Time 220 | . . . . . . 57 144 . . . 19 . . . . . . . . . . . . . Parts Recycled . | . . . . . . . . . . . . . . . . . . . . . . . . . Recycled Matter . | . . . . . . . . . . . . . . . . . . . . . . . . . Retrieved Matter . | . . . . . . . . . . . . . . . . . . . . . . . . . Retrieved Components . | . . . . . . . . . . . . . . . . . . . . . . . . . Parts Scanalyzed . | . . . . . . . . . . . . . . . . . . . . . . . . . Part Schematics Acquired . | . . . . . . . . . . . . . . . . . . . . . . . . . Parts Damaged . | . . . . . . . . . . . . . . . . . . . . . . . . . Bothacking | -11 -10 -10 -10 -8 -8 -8 -7 -7 -7 -7 -6 -6 -6 -6 -5 -5 -5 -5 -5 -5 -4 -4 -4 -4 ------------ Run | Jun Mat Min Sub Mat Gar Mat Fac Gar Fac Gar Fac Was Fac Gar Fac Was Fac Upp Upp War Pro Fac Was Fac Used RIF Installer 4 | . . . . . 1 . . 1 . 1 . . . 1 . . . . . . . . . . Coupler Efficiency 1 | . . . . . . . . . . 1 . . . . . . . . . . . . . . Hotswap 1 | . . . . . . . . 1 . . . . . . . . . . . . . . . . Zone Cloak 1 | . . . . . . . . . . . . . . 1 . . . . . . . . . . Robots Hacked 23 | . . . . . . . . . . . 3 6 . . 1 6 1 . . . . 4 . 2 Non-combat 7 | . . . . . . . . . . . . . . . 1 . . . . . . 4 . 2 Combat 16 | . . . . . . . . . . . 3 6 . . . 6 1 . . . . . . . Robot Hacks Applied 23 | . . . . . . . . . . . 3 6 . . 1 6 1 . . . . 4 . 2 find_chute 2 | . . . . . . . . . . . . . . . 1 . . . . . . 1 . . drop_inventory 3 | . . . . . . . . . . . . . . . . . . . . . . 1 . 2 block_reporting 1 | . . . . . . . . . . . . . . . . . . . . . . 1 . . ignore_targets 12 | . . . . . . . . . . . . 6 . . . 6 . . . . . . . . reboot_system 1 | . . . . . . . . . . . 1 . . . . . . . . . . . . . overwrite_iff 2 | . . . . . . . . . . . 2 . . . . . . . . . . . . . formatsys_low 1 | . . . . . . . . . . . . . . . . . . . . . . 1 . . formatsys_high 1 | . . . . . . . . . . . . . . . . . 1 . . . . . . . Relay Couplers Released 5 | . . . . . 3 . . . . . . . . . . . 2 . . . . . . . Machine Destruction 5 | . . . . . 3 . . . . . . . . . . . 2 . . . . . . . Attached 6 | . . . . . . . . . . . 1 1 . . . 1 1 . . . . 1 1 . Fabnet Peak Effective % . | . . . . . . . . . . . . . . . . . . . . . . . . . Robots Rewired 8 | . . . . . 3 . . . . . . . . 5 . . . . . . . . . . Allies Hacked 2 | . . . . . . . . . . . . . . . . . 2 . . . . . . . Hacks Repelled . | . . . . . . . . . . . . . . . . . . . . . . . . . Allies | -11 -10 -10 -10 -8 -8 -8 -7 -7 -7 -7 -6 -6 -6 -6 -5 -5 -5 -5 -5 -5 -4 -4 -4 -4 -------- Run | Jun Mat Min Sub Mat Gar Mat Fac Gar Fac Gar Fac Was Fac Gar Fac Was Fac Upp Upp War Pro Fac Was Fac Total Allies 66 | . . 2 9 . 3 . . . . 2 2 19 . 7 . 20 1 . . . . 1 . . Largest Group 19 | . . 2 7 5 3 . . . . 2 1 19 17 17 8 19 19 . . . . 1 . . Highest-Rated Group 702 | . . 41 133 95 57 . . . . 175 12 702 602 602 370 702 691 . . . . 26 . . Highest-Rated Ally 137 | . . 31 31 19 19 . . . . 95 12 50 46 62 62 50 137 . . . . 26 . . Total Orders . | . . . . . . . . . . . . . . . . . . . . . . . . . Ally Attacks 710 | . . . 56 9 38 . . . . 32 1 149 . 171 43 65 146 . . . . . . . Total Damage 17946 | . . . 1004 84 501 . . . . 966 13 3086 . 5059 2266 1100 3867 . . . . . . . Kills 101 | . . . 10 . 2 . . . . 8 . 6 . 40 17 2 16 . . . . . . . Allies Corrupted 5 | . . . . . . . . . . . . . . 1 . . 4 . . . . . . . Allies Melted 1 | . . . . . . . . . . . . . . . . . 1 . . . . . . . Intel | -11 -10 -10 -10 -8 -8 -8 -7 -7 -7 -7 -6 -6 -6 -6 -5 -5 -5 -5 -5 -5 -4 -4 -4 -4 ------- Run | Jun Mat Min Sub Mat Gar Mat Fac Gar Fac Gar Fac Was Fac Gar Fac Was Fac Upp Upp War Pro Fac Was Fac Robot Analysis Total 3 | . 3 . . . . . . . . . . . . . . . . . . . . . . . Derelict Logs Recovered 4 | . . . 1 . . . . . . . . . . . . . . . 2 . 1 . . . Drone Launches . | . . . . . . . . . . . . . . . . . . . . . . . . . Drone Recoveries . | . . . . . . . . . . . . . . . . . . . . . . . . . Exploration | -11 -10 -10 -10 -8 -8 -8 -7 -7 -7 -7 -6 -6 -6 -6 -5 -5 -5 -5 -5 -5 -4 -4 -4 -4 ------------- Run | Jun Mat Min Sub Mat Gar Mat Fac Gar Fac Gar Fac Was Fac Gar Fac Was Fac Upp Upp War Pro Fac Was Fac Turns Passed 27655 | 38 747 161 6902 156 1731 2819 696 953 30 974 1155 665 50 1417 956 1439 1503 978 1135 219 1023 886 780 242 Spaces Moved 12602 | 17 370 73 3821 85 843 1180 258 483 12 327 314 241 24 665 373 499 512 351 421 84 388 457 680 124 Core 47 | . . . . . . . . . . . . . . . . . . . . . . 47 . . Treads 10118 | 3 370 73 3821 85 821 787 258 483 12 327 314 223 24 665 373 499 477 . . . . . 379 124 Legs 1534 | 14 . . . . . . . . . . . 18 . . . . 35 351 421 84 388 223 . . Wheels 415 | . . . . . 22 393 . . . . . . . . . . . . . . . . . . Hover . | . . . . . . . . . . . . . . . . . . . . . . . . . Flight 488 | . . . . . . . . . . . . . . . . . . . . . . 187 301 . Fastest Speed 22 | 120 160 160 160 160 120 120 162 162 242 240 242 170 170 160 160 240 140 140 250 250 250 22 25 160 Average Speed 180 | 127 160 160 160 160 159 153 165 166 242 241 242 235 170 185 228 240 233 247 250 250 250 140 105 160 Slowest Speed 305 | 160 160 160 160 160 240 243 243 242 242 242 242 253 170 255 240 240 250 250 250 250 250 250 305 160 Overloaded Moves 27 | . . . . . . . . . . . . . . . . . . . . . . 27 . . Propulsion Burnouts . | . . . . . . . . . . . . . . . . . . . . . . . . . Robots Hopped 8 | . . . . . . . . . . . . . . . . . . . . . . 8 . . Cave-ins Triggered . | . . . . . . . . . . . . . . . . . . . . . . . . . Exploration Rate (%) 45 | 2 54 20 98 14 87 90 12 53 . 65 11 90 1 68 14 96 23 50 55 16 60 19 96 7 Regions Visited 24 Branch Regions 6 Pre-discovered Areas 3 | . 1 . . . . 1 . . . . . . . . . . . . . . 1 . . . Known Exits Taken 5 | . . . . 1 . . 1 . 1 . . . 1 . . . 1 . . . . . . . Unknown Exits Taken 9 | 1 1 1 1 . . 1 . . . . . . . . . . . 1 1 1 1 . . . Scrap Searched 21 | . . . 14 . . . . . . . . . . . . . . 1 3 . 3 . . . Spaces Dug 134 | . 22 14 10 3 . 25 9 . . 3 10 . . 4 2 . 15 . . 1 1 8 . 7 Terrain Destroyed 329 | . 52 29 48 3 2 80 26 6 . 10 24 . . 4 2 . 15 1 . 1 8 11 . 7 Melee 41 | . . . . . . 1 8 . . . 5 . . 3 2 . 15 . . . . 7 . . Projectile 173 | . 3 . 11 3 2 79 18 6 . 10 19 . . 1 . . . 1 . 1 8 4 . 7 AOE 115 | . 49 29 37 . . . . . . . . . . . . . . . . . . . . . Terrain Rammed . | . . . . . . . . . . . . . . . . . . . . . . . . . Walls Destroyed . | . . . . . . . . . . . . . . . . . . . . . . . . . Machines Disabled . | . . . . . . . . . . . . . . . . . . . . . . . . . Actions | -11 -10 -10 -10 -8 -8 -8 -7 -7 -7 -7 -6 -6 -6 -6 -5 -5 -5 -5 -5 -5 -4 -4 -4 -4 --------- Run | Jun Mat Min Sub Mat Gar Mat Fac Gar Fac Gar Fac Was Fac Gar Fac Was Fac Upp Upp War Pro Fac Was Fac Total 15933 | 24 456 107 4204 95 1109 2040 458 562 12 423 635 334 33 770 438 684 689 409 471 92 412 584 736 156 Wait 1720 | . 13 26 198 1 54 674 145 28 . 26 252 46 9 20 15 94 33 15 25 . 4 21 3 18 Move 12571 | 16 369 72 3820 84 842 1179 258 482 12 326 314 240 24 664 373 498 512 350 420 83 387 443 679 124 Hop 6 | . . . . . . . . . . . . . . . . . . . . . . 6 . . Pick Up 112 | . 14 . 7 2 15 20 1 5 . 1 4 7 . 8 1 3 5 5 2 . . 3 9 . Fast Attach 92 | 1 . . 3 1 11 12 5 1 . 1 3 3 . 3 4 7 6 3 3 . 2 9 14 . Attach 63 | . . . 2 3 8 3 2 . . 1 2 3 . 1 2 2 4 5 1 1 2 15 6 . Detach 32 | . . . 1 . 1 2 . . . . . 2 . 2 2 5 3 2 1 2 . 5 4 . Swap 176 | 3 16 1 12 1 8 31 11 9 . 18 11 7 . 5 12 5 5 1 . 5 . 8 5 2 Drop 133 | . 6 . 10 . 15 33 2 3 . 2 1 16 . 9 4 13 5 . 2 . 1 1 10 . Fire 756 | 4 33 7 149 3 96 78 21 34 . 42 19 7 . 23 21 40 80 20 17 1 16 27 6 12 Melee 183 | . . . . . . 1 13 . . . 26 3 . 35 3 17 31 8 . . . 46 . . Ram . | . . . . . . . . . . . . . . . . . . . . . . . . . Kick 1 | . . . . . . . . . . . . . . . . . 1 . . . . . . . Crush 21 | . 5 1 2 . . 7 . . . . 3 . . . 1 . 2 . . . . . . . Escape Stasis 8 | . . . . . . . . . . 6 . . . . . . 2 . . . . . . . Rewire 59 | . . . . . 59 . . . . . . . . . . . . . . . . . . . Trap . | . . . . . . . . . . . . . . . . . . . . . . . . . Miscellaneous . | . . . . . . . . . . . . . . . . . . . . . . . . . Route ------- -11/Junkyard -10/Materials (discovered 2 exits: [*Mat] / [*Min]) -10/Mines (discovered 3 exits: [*Mat] / [*Exi] / *Sub) -10/Subcaves (discovered 3 exits: *Mat x2 / [*Rec]) -8/Materials -8/Garrison (discovered 4 exits: *Mat x4) -8/Materials (discovered 3 exits: *Fac x3) -7/Factory -7/Garrison (discovered 3 exits: *Fac x3) -7/Factory -7/Garrison (discovered 3 exits: *Fac x3) -6/Factory -6/Waste -6/Factory -6/Garrison (discovered 3 exits: *Fac x3) -5/Factory -5/Waste -5/Factory (discovered 4 exits: *Upp x2 / Ext x2) -5/Upper Caves -5/Upper Caves -5/Warlord -4/Proximity Caves -4/Factory (discovered 3 exits: *Res x2 / *Upp) -4/Waste -4/Factory (discovered 6 exits: Res x4 / Upp x2) History --------- Turn | Location | Event 14 | -11/Junkyard | Discovered new exit (range 3) 39 | -11/Junkyard | Entered Materials 304 | -10/Materials | Build established: Mutant 486 | -10/Materials | Discovered new exit (range 9) 675 | -10/Materials | Discovered new exit (range 15) 786 | -10/Materials | Entered Mines 812 | -10/Mines | Discovered new exit (range 14) 873 | -10/Mines | Deemed a non-threat by the Exiles lab entrance 873 | -10/Mines | Discovered new exit (range 5) 937 | -10/Mines | Discovered new exit (range 5) 947 | -10/Mines | Entered Subcaves 947 | -10/Subcaves | Accompanied by 2 allies 952 | -10/Subcaves | Led the pair of lost Derelicts to an unsafe place 990 | -10/Subcaves | Discovered new exit (range 11) 1502 | -10/Subcaves | Discovered new exit (range 15) 1577 | -10/Subcaves | Visited triangular shrine 1588 | -10/Subcaves | Found Prototype Device 1588 | -10/Subcaves | Identified V3-11A's Pendant 1593 | -10/Subcaves | Befriended Subdweller 1878 | -10/Subcaves | Befriended Subdweller 1878 | -10/Subcaves | Befriended Subdweller 1880 | -10/Subcaves | Learned Materials garrison access intel 2098 | -10/Subcaves | Befriended Subdweller 2108 | -10/Subcaves | Befriended Subdweller 2109 | -10/Subcaves | Shifting Twisted Machinery released Flamer 2113 | -10/Subcaves | Befriended Subdweller 2303 | -10/Subcaves | Befriended Subdweller 2708 | -10/Subcaves | Shifting Twisted Machinery released Mak. Kinetic Plating 2773 | -10/Subcaves | Shifting Twisted Machinery released Sub. Power Source 3182 | -10/Subcaves | A swath of the cavern ceiling suddenly collapsed 3188 | -10/Subcaves | Visited Clippyterm 3192 | -10/Subcaves | Learned Factory trap positions 3192 | -10/Subcaves | Learned Research machine intel 3418 | -10/Subcaves | Befriended Subdweller 4282 | -10/Subcaves | Shifting Twisted Machinery released Sub. Power Source 4296 | -10/Subcaves | Shifting Twisted Machinery released Battle Rifle 4589 | -10/Subcaves | A swath of the cavern ceiling suddenly collapsed 4694 | -10/Subcaves | Discovered new exit (range 14) 6772 | -10/Subcaves | Disturbed a concealed Subdweller 6874 | -10/Subcaves | Disturbed a concealed Subdweller 6875 | -10/Subcaves | Befriended Subdweller 7849 | -10/Subcaves | Entered Materials 7849 | -8/Materials | Accompanied by 5 allies 7849 | -8/Materials | Evolved 4 slots: Propulsion x2, Utility x2 7850 | -8/Materials | Loaded intel: 1 garrison access location 8002 | -8/Materials | Identified exit to Garrison 8005 | -8/Materials | Entered Garrison 8005 | -8/Garrison | Accompanied by 3 allies 8045 | -8/Garrison | Triggered checkpoint 8066 | -8/Garrison | Triggered checkpoint 8248 | -8/Garrison | Discovered new exit (range 15) 8270 | -8/Garrison | Installed Relay Interface Framework 8312 | -8/Garrison | Triggered checkpoint 8488 | -8/Garrison | Triggered checkpoint 8520 | -8/Garrison | Build established: Scavenger-Mutant 8607 | -8/Garrison | Discovered new exit (range 10) 8646 | -8/Garrison | Triggered checkpoint 8689 | -8/Garrison | Lost 3 parts (1p1n1u) 8706 | -8/Garrison | Discovered new exit (range 5) 8840 | -8/Garrison | Triggered checkpoint 8881 | -8/Garrison | Garrison Relay disabled 9228 | -8/Garrison | Triggered checkpoint 9486 | -8/Garrison | Discovered new exit (range 12) 9541 | -8/Garrison | Triggered checkpoint 9736 | -8/Garrison | Entered Materials 10071 | -8/Materials | Repaired Hvy. Armor Plating 10319 | -8/Materials | Discovered new exit (range 7) 10521 | -8/Materials | Discovered new exit (range 8) 11014 | -8/Materials | Build established: Mutant 11391 | -8/Materials | Discovered new exit (range 11) 11492 | -8/Materials | Repaired Hvy. Armor Plating 11676 | -8/Materials | System corruption reached 10% 12555 | -8/Materials | Entered Factory 12555 | -7/Factory | Evolved 2 slots: Power x1, Utility x1 12556 | -7/Factory | Loaded intel: 76 trap records 12684 | -7/Factory | Repaired Med. Treads? 12761 | -7/Factory | Repaired Med. Treads 12818 | -7/Factory | Repaired Enh. Gauss Cannon 13251 | -7/Factory | Identified exit to Garrison 13251 | -7/Factory | Entered Garrison 13324 | -7/Garrison | Triggered checkpoint 13428 | -7/Garrison | Learned Factory security intel 13471 | -7/Garrison | Triggered checkpoint 13593 | -7/Garrison | Discovered new exit (range 13) 13610 | -7/Garrison | Expanded RIF knowledge: Hotswap 13715 | -7/Garrison | Triggered checkpoint 13846 | -7/Garrison | Discovered new exit (range 10) 13914 | -7/Garrison | Triggered checkpoint 14076 | -7/Garrison | Discovered new exit (range 10) 14204 | -7/Garrison | Entered Factory 14234 | -7/Factory | Identified exit to Garrison 14234 | -7/Factory | Entered Garrison 14262 | -7/Garrison | Found embedded Infiltrators 14337 | -7/Garrison | Triggered checkpoint 14374 | -7/Garrison | Triggered checkpoint 14612 | -7/Garrison | Discovered new exit (range 10) 14790 | -7/Garrison | Expanded RIF knowledge: Coupler Efficiency 14869 | -7/Garrison | Discovered new exit (range 12) 15131 | -7/Garrison | Discovered new exit (range 10) 15179 | -7/Garrison | Spotted B-75 Beast 15208 | -7/Garrison | Entered Factory 15208 | -6/Factory | Evolved 2 slots: Utility x2 15678 | -6/Factory | Repaired Hvy. Armor Plating 16072 | -6/Factory | Build established: Bothacker-Mutant 16363 | -6/Factory | Sucked down chute 16363 | -6/Factory | Entered Waste 16423 | -6/Waste | Found Broken Heavy Servo Lattice 16444 | -6/Waste | Spotted C-40 Crusher 16448 | -6/Waste | Spotted C-40 Crusher 16469 | -6/Waste | Spotted C-40 Crusher 16491 | -6/Waste | Spotted C-40 Crusher 16519 | -6/Waste | Spotted C-40 Crusher 16523 | -6/Waste | Spotted C-40 Crusher 16790 | -6/Waste | Discovered new exit (range 16) 16852 | -6/Waste | Warlord forces began an assault 16862 | -6/Waste | Allies destroyed C-40 Crusher 16916 | -6/Waste | Allies destroyed C-40 Crusher 16939 | -6/Waste | Allies destroyed C-40 Crusher 16948 | -6/Waste | Allies destroyed C-40 Crusher 16950 | -6/Waste | Found Damper Plating 17028 | -6/Waste | Entered Factory 17028 | -6/Factory | Accompanied by 17 allies 17069 | -6/Factory | Identified exit to Garrison 17078 | -6/Factory | Entered Garrison 17078 | -6/Garrison | Accompanied by 17 allies 17164 | -6/Garrison | Triggered checkpoint 17164 | -6/Garrison | Triggered checkpoint 17165 | -6/Garrison | Spotted B-75 Beast 17187 | -6/Garrison | Allies destroyed B-75 Beast 17234 | -6/Garrison | Triggered checkpoint 17275 | -6/Garrison | Spotted B-75 Beast 17285 | -6/Garrison | Discovered new exit (range 11) 17295 | -6/Garrison | Allies destroyed B-75 Beast 17322 | -6/Garrison | Triggered checkpoint 17662 | -6/Garrison | Triggered checkpoint 17812 | -6/Garrison | Found Relay Coupler [Proto] 17815 | -6/Garrison | Found Relay Coupler [Proto] 17818 | -6/Garrison | Found Relay Coupler [Proto] 17821 | -6/Garrison | Found Relay Coupler [Proto] 17882 | -6/Garrison | Discovered new exit (range 14) 17901 | -6/Garrison | Found embedded Infiltrators 18096 | -6/Garrison | Triggered checkpoint 18279 | -6/Garrison | Expanded RIF knowledge: Zone Cloak 18473 | -6/Garrison | Discovered new exit (range 13) 18495 | -6/Garrison | Entered Factory 18495 | -5/Factory | Accompanied by 8 allies 18495 | -5/Factory | Evolved 2 slots: Utility x2 18589 | -5/Factory | Build established: Botlord-Mutant 19395 | -5/Factory | First assault squad dispatched 19451 | -5/Factory | Sucked down chute 19451 | -5/Factory | Entered Waste 19452 | -5/Waste | Met a frightened Derelict 19471 | -5/Waste | Spotted C-40 Crusher 19491 | -5/Waste | Spotted C-40 Crusher 19562 | -5/Waste | Spotted C-40 Crusher 19569 | -5/Waste | Spotted C-40 Crusher 19575 | -5/Waste | Allies destroyed C-40 Crusher 19743 | -5/Waste | Spotted C-40 Crusher 19744 | -5/Waste | Spotted C-40 Crusher 19889 | -5/Waste | Destroyed C-40 Crusher 19897 | -5/Waste | Destroyed C-40 Crusher 19933 | -5/Waste | Destroyed C-40 Crusher 19967 | -5/Waste | Destroyed C-40 Crusher 20087 | -5/Waste | Discovered new exit (range 13) 20425 | -5/Waste | Warlord forces began an assault 20654 | -5/Waste | Found Damper Plating 20890 | -5/Waste | Entered Factory 20890 | -5/Factory | Accompanied by 19 allies 20949 | -5/Factory | Build established: Bothacker-Mutant 21530 | -5/Factory | Spotted B-75 Beast 21818 | -5/Factory | Garrison activated, responded to threat 22090 | -5/Factory | First assault squad dispatched 22115 | -5/Factory | Destroyed 10 combat bots 22187 | -5/Factory | Identified exit to Upper Caves 22187 | -5/Factory | Identified exit to Extension 22290 | -5/Factory | System corruption reached 10% 22291 | -5/Factory | Lost 3 parts (1p1u1w) 22351 | -5/Factory | Lost 3 parts (1p1n1u) 22393 | -5/Factory | Entered Upper Caves 23160 | -5/Upper Caves | Discovered new exit (range 15) 23371 | -5/Upper Caves | Entered another Upper Caves area 23448 | -5/Upper Caves | Attracted the attention of an 0b10 checkpoint 23723 | -5/Upper Caves | System corruption reached 30% 23974 | -5/Upper Caves | Learned Factory machine intel 23979 | -5/Upper Caves | Learned Factory trap positions 24336 | -5/Upper Caves | Discovered new exit (range 7) 24506 | -5/Upper Caves | Entered Warlord 24594 | -5/Warlord | System corruption cleaned by Quarantine Array 24644 | -5/Warlord | Discovered new exit (range 14) 24725 | -5/Warlord | Entered Proximity Caves 24817 | -4/Proximity Caves | Learned location of Armory (-3) 24899 | -4/Proximity Caves | Attracted the attention of an 0b10 checkpoint 25569 | -4/Proximity Caves | Discovered new exit (range 16) 25748 | -4/Proximity Caves | Entered Factory 25748 | -4/Factory | Evolved 2 slots: Utility x2 25749 | -4/Factory | Loaded intel: 86 trap records 25750 | -4/Factory | Loaded intel: 227 machine locations 26503 | -4/Factory | Core integrity fell below 50% 26521 | -4/Factory | Released all parts (5) 26546 | -4/Factory | Lost 18 parts (4p2n6u6w) 26578 | -4/Factory | Discovered new exit (range 12) 26584 | -4/Factory | Discovered new exit (range 14) 26597 | -4/Factory | Core integrity fell below 20% 26632 | -4/Factory | Discovered new exit (range 13) 26634 | -4/Factory | Manually triggered Chute Trap 26634 | -4/Factory | Sucked down chute 26634 | -4/Factory | Entered Waste 26634 | -4/Waste | The area was eerily silent 26671 | -4/Waste | Found Prototype Protection 26671 | -4/Waste | Identified Centrium Heavy Armor Plating 26679 | -4/Waste | Found Prototype Processor 26679 | -4/Waste | Identified Exp. Armor Integrity Analyzer 26697 | -4/Waste | Found Adv. Powered Armor 26702 | -4/Waste | Discovered new exit (range 15) 26856 | -4/Waste | Found Damper Plating 27148 | -4/Waste | Build established: Scavenger-Mutant 27414 | -4/Waste | Entered Factory 27430 | -4/Factory | Identified exit to Upper Caves 27430 | -4/Factory | Identified exit to Research 27650 | -4/Factory | Spotted B-86 Titan 27656 | -4/Factory | Destroyed by B-86 Titan with Matter Neutralizer Last Messages --------------- 27497_ Adv. Heat Sink fried. 27503_ Ended siege mode. 27504_ R-10 Processor collects Corrupted Adv. Heat Sink. 27507_ R-10 Processor collects Corrupted Imp. Treads. 27516_ Jacked A-15 Conveyor... >>drop_inventory Dumping inventory... 2x Mic. Fission Core 1x Kinecellerator 27517_ R-10 Processor collects Kinecellerator. 27517_ Jacked A-15 Conveyor... >>drop_inventory Dumping inventory... 6x Armor Integrity Analyzer 27521_ R-10 Processor collects Mic. Fission Core. 27526_ R-10 Processor collects Armor Integrity Analyzer. 27556_ ALERT: Security rotation in progress. 27566_ System corrupted: Component data lost. 27624_ System corrupted: Energy discharge (-220). 27649_ Penetrated by Slug. Map ----- +----------------------------------------------------+ | ?????????????????????????????????????????????????? | | ?????????????????????????????????????????????????? | | ?????????????????????????????????????????????????? | | ?????????????????????????????????????????????????? | | ?????????????????????????????????????????????????? | | ?????????????????????????????????????????????????? | | ?????????????????????????????????????????????????? | | ?????????????????????????????????????????????????? | | ?????????????????????????????????????????????????? | | ?